bitfinex/quotes_ETHUSD_20251213
["timestamp","ask_amount","ask_price","bid_price","bid_amount"]
[1765614077771,1.0,3125.3,3124.2,0.58047529]
[1765614077772,1.0,3125.3,3124.6,0.405504]
[1765614077975,1.0,3125.3,3124.9,6.406934]
[1765614078168,1.0,3125.3,3123.8,0.1845]
[1765614078416,3.1998976,3125.1,3124.2,0.96083323]
[1765614078707,0.488,3125.2,3124.1,0.58047529]
[1765614079002,1.0,3125.3,3124.5,0.58047529]
[1765614079003,0.888,3125.3,3124.5,0.58047529]
[1765614079208,0.888,3125.3,3124.2,3.71478401]
[1765614079209,0.2299,3124.6,3124.2,3.78129469]
[1765614079413,0.2299,3124.6,3124.3,0.514]
[1765614079574,0.888,3125.3,3124.2,3.20081863]
[1765614079769,0.888,3125.3,3124.3,0.514]
[1765614080070,0.888,3125.3,3124.2,6.40163803]
[1765614080071,0.888,3125.3,3124.4,0.514]
[1765614080376,4.0877119,3125.3,3124.2,0.58047529]
[1765614080579,7.2874238,3125.3,3124.5,0.514]
[1765614080802,7.2874238,3125.3,3123.6,5.26663062]
[1765614080803,10.4871357,3125.3,3123.6,5.26663062]
[1765614081019,0.357,3124.0,3123.7,0.514]
[1765614081219,0.357,3124.0,3123.9,6.90194029]
[1765614081814,0.357,3124.0,3123.1,0.1845]
[1765614082016,0.357,3124.2,3123.3,15.457636]
[1765614082221,0.357,3124.2,3122.6,5.26663062]
[1765614082385,0.357,3124.2,3122.8,10.29474051]
[1765614082386,6.40184372,3124.1,3122.8,10.29474051]
[1765614082589,6.40184372,3124.1,3123.2,0.96112105]
[1765614082818,6.40184372,3124.1,3120.6,1.64476078]
[1765614082819,0.1663,3122.8,3122.1,0.1845]
[1765614083019,0.1663,3122.8,3122.1,5.26663062]
[1765614083226,0.1663,3122.8,3122.3,2.981841]
[1765614083524,0.1663,3123.0,3122.5,35.26663062]
[1765614083719,0.1663,3123.0,3122.8,0.58047529]
[1765614083907,0.1663,3123.0,3122.6,1.09447529]
[1765614084105,0.1663,3123.0,3122.8,2.067]
[1765614084322,0.1663,3123.0,3122.9,1.09447529]
[1765614084497,0.1663,3123.0,3122.9,0.514]
[1765614084695,0.5233,3123.0,3122.1,5.26663062]
[1765614084898,0.1663,3123.0,3122.3,21.471619]
[1765614085088,0.1663,3123.3,3122.9,3.20215184]
[1765614085293,0.1663,3123.3,3123.0,0.514]
[1765614085723,0.5233,3123.3,3123.0,0.514]
[1765614085912,0.5233,3123.3,3122.5,24.42167119]
[1765614086110,0.5233,3123.3,3122.8,3.78271119]
[1765614086288,0.5233,3123.3,3122.4,0.58047529]
[1765614086489,0.5233,3123.3,3122.1,5.26663062]
[1765614086693,0.5233,3123.3,3122.6,0.58047529]
[1765614086897,0.89579556,3123.3,3122.7,0.514]
[1765614087090,0.5233,3123.3,3122.8,0.514]
[1765614087319,0.5233,3123.3,3122.0,0.96149069]
[1765614087320,0.357,3123.2,3122.0,0.96149069]
[1765614087528,0.357,3123.2,3122.3,3.249]
[1765614087823,0.357,3123.2,3122.3,11.707369]
[1765614088129,0.357,3123.2,3122.4,0.514]
[1765614088294,0.729506,3123.2,3122.4,1.09447529]
[1765614088496,0.729506,3123.2,3122.5,0.58047529]
[1765614088694,0.357,3123.1,3122.5,0.514]
[1765614089220,0.357,3123.1,3122.3,0.58047529]
[1765614089420,0.357,3123.1,3120.0,0.14444716]
[1765614089421,0.357,3123.1,3122.0,3.425289]
[1765614089719,0.0028,3122.3,3122.0,3.20303476]
[1765614089918,0.357,3123.1,3122.1,0.514]
[1765614090125,9.77161378,3123.3,3122.2,0.514]
[1765614090423,0.97716138,3123.2,3122.3,0.514]
[1765614090624,0.357,3122.4,3121.8,0.58047529]
[1765614090922,0.357,3122.4,3121.9,0.514]
[1765614091093,0.357,3122.4,3121.2,0.4582]
[1765614091094,0.357,3122.4,3122.0,0.514]
[1765614091493,0.357,3122.1,3122.0,0.514]
[1765614091710,0.357,3122.1,3121.5,0.58047529]
[1765614091911,0.3735,3121.6,3121.5,5.9748123]
[1765614092164,0.3735,3121.6,3121.4,3.20365768]
[1765614092305,0.3735,3121.6,3121.5,0.514]
[1765614092306,0.0953,3121.6,3121.5,0.514]
[1765614092512,0.4523,3121.6,3121.5,1.09447529]
[1765614092712,0.4523,3121.6,3121.4,0.58047529]
[1765614092891,0.4523,3121.6,3121.5,0.514]
[1765614093100,0.4523,3121.6,3121.3,3.20379218]
[1765614093326,0.0953,3121.6,3120.7,8.47098368]
[1765614093498,0.0953,3121.6,3120.8,0.514]
[1765614093697,0.0953,3121.6,3121.2,3.20387974]
[1765614094018,0.0953,3121.6,3121.3,0.514]
[1765614094217,0.357,3121.5,3121.3,1.09447529]
[1765614094728,0.357,3121.5,3121.4,4.29816594]
[1765614094929,3.20220577,3122.9,3121.4,4.29816594]
[1765614094930,0.0953,3122.4,3121.6,29.441249]
[1765614095119,0.0953,3122.4,3121.9,0.58047529]
[1765614095320,0.0953,3122.4,3122.0,0.514]
[1765614095926,0.1663,3123.3,3122.5,0.58047529]
[1765614096126,0.0953,3124.1,3123.3,23.067224]
[1765614096127,0.357,3123.9,3123.3,23.067224]
[1765614096327,0.357,3123.9,3123.4,0.514]
[1765614096721,0.0953,3124.1,3123.4,0.514]
[1765614096939,0.0953,3124.1,3123.4,3.20162829]
[1765614097148,0.4523,3124.1,3123.5,0.514]
[1765614097333,0.4523,3124.1,3123.5,1.09447529]
[1765614097527,0.2782,3123.6,3123.5,0.58047529]
[1765614097717,0.2782,3123.6,3123.2,3.2018428]
[1765614097718,0.2782,3123.6,3122.6,0.58047529]
[1765614097919,0.3562,3123.5,3123.2,0.58047529]
[1765614098135,0.279,3123.3,3123.2,0.58047529]
[1765614098341,3.29622611,3124.1,3123.2,6.91768852]
[1765614098342,0.0953,3124.1,3123.2,6.91768852]
[1765614098537,0.0953,3124.1,3123.3,10.357569]
[1765614098737,0.0953,3124.1,3123.3,8.149679]
[1765614099145,0.0953,3124.1,3123.4,6.40327846]
[1765614099345,0.4523,3124.1,3123.4,3.20163923]
[1765614099947,0.357,3124.0,3123.0,0.58047529]
[1765614100145,0.357,3124.0,3123.4,3.20163923]
[1765614100449,0.357,3124.0,3123.5,0.513]
[1765614100949,0.0953,3124.1,3123.4,3.20163923]
[1765614101138,0.357,3124.0,3123.5,0.513]
[1765614102020,0.357,3124.0,3123.6,0.513]
[1765614102222,0.357,3124.0,3123.2,3.2018442]
[1765614102421,0.357,3124.0,3123.3,0.513]
[1765614102622,6.75907699,3124.0,3122.7,0.96126271]
[1765614102854,0.6854377,3123.9,3122.9,0.58047529]
[1765614103056,1.0424377,3123.9,3122.9,3.20214151]
[1765614103254,0.2782,3123.0,3122.3,9.03664558]
[1765614103457,0.2782,3123.0,3122.8,0.58047529]
[1765614103761,0.2782,3123.0,3122.5,0.58047529]
[1765614103949,0.2782,3123.0,3122.8,0.58047529]
[1765614104152,0.2782,3123.0,3122.6,0.513]
[1765614104454,0.2782,3123.0,3122.8,0.58047529]
[1765614104657,0.2782,3123.0,3122.6,0.513]
[1765614104960,0.2782,3123.0,3122.7,2.495572]
[1765614105157,0.2782,3123.0,3122.8,3.20225438]
[1765614105364,0.2782,3123.0,3122.8,3.71525438]
[1765614105860,0.2782,3123.0,3122.9,0.58047529]
[1765614106557,0.2782,3123.0,3122.8,0.58047529]
[1765614106863,0.1663,3123.1,3122.2,2.183855]
[1765614107064,0.357,3122.9,3122.3,0.513]
[1765614107538,3.55917504,3122.9,3122.3,0.513]
[1765614107738,0.357,3122.9,3122.3,0.513]
[1765614107960,0.357,3122.8,3122.3,0.513]
[1765614108672,0.1911,3122.4,3122.3,0.513]
[1765614108835,0.1911,3122.4,3121.1,1.14228661]
[1765614109035,0.37253817,3122.9,3121.3,0.58047529]
[1765614109036,0.0019,3121.8,3121.3,0.58047529]
[1765614109254,0.0019,3121.8,3121.6,0.58047529]
[1765614109565,0.0953,3121.7,3121.6,0.58047529]
[1765614109736,0.2845,3121.7,3121.6,1.09347529]
[1765614110263,0.2845,3121.7,3121.6,0.513]
[1765614111063,0.6415,3121.7,3121.6,0.513]
[1765614111264,0.6415,3121.7,3121.5,3.20356256]
[1765614111466,0.02038374,3121.7,3121.6,0.513]
[1765614111671,3.20294946,3122.2,3121.6,0.513]
[1765614111969,3.20294946,3122.2,3121.4,3.20368165]
[1765614111970,3.84351735,3122.2,3121.7,0.513]
[1765614112175,7.04647743,3122.2,3120.7,0.96188221]
[1765614112359,3.84351735,3122.2,3121.0,3.2040198]
[1765614112662,7.04647743,3122.2,3121.3,0.58047529]
[1765614112866,3.84351735,3122.2,3121.4,0.513]
[1765614113071,0.70463054,3122.1,3121.4,0.513]
[1765614113241,3.20307495,3122.0,3121.5,0.513]
[1765614113644,3.20297422,3122.1,3121.3,3.20376109]
[1765614113961,3.20297422,3122.1,3121.1,3.20397935]
[1765614113962,6.40594844,3122.1,3121.4,0.513]
[1765614114157,3.20297422,3122.1,3121.4,0.513]
[1765614114360,3.84356031,3122.1,3121.4,0.513]
[1765614114552,7.04653453,3122.1,3121.4,0.513]
[1765614114870,7.04653453,3122.1,3120.5,0.1918]
[1765614114871,7.04653453,3122.1,3121.3,0.513]
[1765614115036,7.04653453,3122.1,3121.0,3.20403896]
[1765614115371,7.04653453,3122.1,3121.1,0.513]
[1765614115372,10.24950875,3122.1,3121.1,0.513]
[1765614115570,1.02495088,3122.0,3120.7,3.20437764]
[1765614115767,1.02495088,3122.0,3120.8,3.20430602]
[1765614115966,1.02495088,3122.0,3120.9,0.513]
[1765614116371,1.02495088,3122.0,3121.0,0.513]
[1765614117142,1.02495088,3122.0,3120.6,0.58047529]
[1765614117370,3.20328015,3121.8,3120.8,3.20430658]
[1765614117871,6.4065603,3121.8,3120.8,3.20430658]
[1765614118070,3.20328015,3121.8,3120.8,3.20430658]
[1765614118271,13.32201752,3122.8,3120.9,0.58047529]
[1765614118567,1.89744348,3122.7,3120.9,1.09347529]
[1765614118774,0.09444716,3122.6,3121.0,0.513]
[1765614119372,0.09124716,3122.6,3121.0,0.513]
[1765614119560,9.60768612,3122.5,3121.0,3.71704834]
[1765614119876,9.60768612,3122.5,3121.1,0.513]
[1765614120047,0.96989333,3122.4,3121.1,0.513]
[1765614120772,0.96989333,3122.4,3121.1,1.1996]
[1765614121281,3.20249363,3122.6,3121.2,0.4989]
[1765614121463,6.40498726,3122.6,3121.2,0.4989]
[1765614121663,0.513,3123.0,3121.2,0.4989]
[1765614121664,6.40430368,3122.9,3121.3,6.40758658]
[1765614122075,9.60645552,3122.9,3121.3,6.40758658]
[1765614122959,9.60645552,3122.9,3121.3,3.20379329]
[1765614123158,1.01194555,3122.8,3121.4,0.513]
[1765614123757,6.40471386,3122.7,3121.5,3.20358801]
[1765614124252,1.01194555,3122.8,3121.6,1.59237529]
[1765614124476,3.20220287,3122.9,3121.6,1.59237529]
[1765614124778,3.20220287,3122.9,3121.7,0.513]
[1765614124779,6.40440574,3122.9,3121.7,0.513]
[1765614125350,3.20220287,3122.9,3121.7,1.0119]
[1765614125847,3.20204931,3123.0,3121.8,6.4065603]
[1765614126081,0.1663,3123.1,3121.9,0.58047529]
[1765614126281,0.512,3124.3,3122.3,0.58047529]
[1765614126452,0.512,3124.3,3122.6,0.58047529]
[1765614126651,0.37126145,3124.2,3122.6,0.58047529]
[1765614126853,0.37126145,3124.2,3122.7,0.4989]
[1765614127752,6.40184372,3124.1,3122.8,6.40450876]
[1765614128066,6.40184372,3124.1,3122.9,0.512]
[1765614128388,0.37126145,3124.2,3122.9,1.59137529]
[1765614128679,3.57211611,3124.2,3122.9,1.07937529]
[1765614128856,0.35721161,3124.1,3123.0,0.512]
[1765614129056,0.35721161,3124.1,3122.9,1.07937529]
[1765614129264,0.35721161,3124.1,3123.0,0.512]
[1765614129663,0.35721161,3124.1,3123.1,0.1877]
[1765614130190,0.35721161,3124.1,3123.2,6.40368852]
[1765614130654,3.19979521,3125.2,3123.3,0.58047529]
[1765614130856,6.39959042,3125.2,3123.5,0.58047529]
[1765614131067,6.39959042,3125.2,3123.6,0.512]
[1765614131353,4.65357683,3125.3,3123.8,0.58047529]
[1765614131568,0.46535768,3125.2,3123.8,0.58047529]
[1765614131765,0.46535768,3125.2,3123.9,1.07937529]
[1765614132092,0.46535768,3125.2,3124.0,6.40204864]
[1765614132387,0.94187983,3125.3,3124.1,0.512]
[1765614132684,0.94187983,3125.3,3124.1,1.0109]
[1765614133056,0.94187983,3125.3,3124.2,0.4989]
[1765614133256,4.14159435,3125.3,3124.2,0.4989]
[1765614133474,0.94187983,3125.3,3124.2,0.4989]
[1765614133895,0.94187983,3125.3,3124.3,0.09444716]
[1765614134199,0.94187983,3125.3,3124.4,9.60184353]
[1765614134405,0.94187983,3125.3,3124.7,0.09444716]
[1765614134711,0.94187983,3125.3,3125.2,0.4973]
[1765614135269,0.94187983,3125.3,3125.2,0.9962]
[1765614135506,0.94187983,3125.3,3125.2,1.5082]
[1765614135819,0.94187983,3125.3,3125.2,0.9962]
[1765614135973,0.94187983,3125.3,3125.2,4.19599521]
[1765614136173,0.94187983,3125.3,3124.9,3.38777133]
[1765614136404,0.94187983,3125.3,3125.2,3.19979521]
[1765614136591,0.94187983,3125.3,3124.9,0.6866]
[1765614136904,0.94187983,3125.3,3124.2,0.4989]
[1765614137081,0.94187983,3125.3,3124.7,3.20028968]
[1765614137401,0.94187983,3125.3,3124.6,0.58047529]
[1765614137402,0.94187983,3125.3,3124.8,0.512]
[1765614138183,0.94187983,3125.3,3124.7,3.20030641]
[1765614138482,4.14164868,3125.3,3124.8,0.512]
[1765614138688,4.14164868,3125.3,3124.5,3.20050314]
[1765614138883,0.94187983,3125.3,3124.2,1.07937529]
[1765614139084,4.14157317,3125.3,3124.3,3.71270263]
[1765614139283,0.94187983,3125.3,3124.4,3.78107571]
[1765614139487,0.94187983,3125.3,3124.6,3.20040812]
[1765614139488,4.14157322,3125.3,3124.6,3.20040812]
[1765614139792,4.14157322,3125.3,3124.7,0.512]
[1765614140193,4.14161528,3125.3,3124.2,0.58047529]
[1765614140501,4.14161528,3125.3,3124.5,3.2004881]
[1765614141019,0.94187983,3125.3,3124.7,3.2002846]
[1765614141223,0.94187983,3125.3,3124.8,0.512]
[1765614141827,0.94187983,3125.3,3124.8,0.9886]
[1765614142208,0.94187983,3125.3,3124.4,0.4766]
[1765614142519,0.94187983,3125.3,3124.7,3.20029217]
[1765614142715,7.34132199,3125.3,3124.2,3.34]
[1765614142922,7.34132199,3125.3,3124.3,4.29312269]
[1765614143089,7.34132199,3125.3,3124.0,3.8166]
[1765614143090,4.14160091,3125.3,3124.0,3.8166]
[1765614143292,4.14160091,3125.3,3124.6,3.20040606]
[1765614143620,4.14160091,3125.3,3124.7,0.511]
[1765614143918,4.14160091,3125.3,3124.4,3.2005261]
[1765614144119,0.94187983,3125.3,3124.5,4.29197821]
[1765614144329,4.1415969,3125.3,3124.6,3.20040965]
[1765614144492,4.14166049,3125.3,3124.6,3.20040965]
[1765614144692,4.14166049,3125.3,3124.7,0.511]
[1765614145114,0.94187983,3125.3,3124.7,0.511]
[1765614145291,0.94187983,3125.3,3124.7,1.0109]
[1765614145491,0.94187983,3125.3,3124.8,0.4999]
[1765614145720,0.94187983,3125.3,3125.2,0.6514]
[1765614145937,0.94187983,3125.3,3125.2,1.1624]
[1765614146114,0.94187983,3125.3,3125.2,5.4425705]
[1765614146428,0.44187983,3125.3,3125.2,5.4425705]
[1765614146728,0.44187983,3125.3,3125.2,4.9315705]
[1765614147022,0.44187983,3125.3,3125.2,5.4425705]
[1765614148123,0.44187983,3125.3,3125.2,4.7476705]
[1765614148423,0.44187983,3125.3,3125.2,5.2475705]
[1765614150304,0.44187983,3125.3,3125.2,4.2366705]
[1765614150506,0.44187983,3125.3,3125.2,4.7476705]
[1765614150700,0.44187983,3125.3,3125.2,4.2366705]
[1765614151024,0.44187983,3125.3,3125.2,4.7476705]
[1765614151604,0.44187983,3125.3,3125.2,0.58047529]
[1765614151797,0.44187983,3125.3,3125.2,4.2912705]
[1765614152138,0.44187983,3125.3,3124.7,3.70013384]
[1765614152139,0.44187983,3125.3,3124.7,0.4999]
[1765614152296,0.56557983,3125.3,3124.8,0.511]
[1765614153025,0.56557983,3125.3,3125.2,0.4564]
[1765614153026,0.44187983,3125.3,3125.2,0.4564]
[1765614153227,0.44187983,3125.3,3125.2,0.9674]
[1765614153522,0.44187983,3125.3,3125.2,1.4673]
[1765614154231,0.44187983,3125.3,3125.2,32.04777529]
[1765614154697,0.44187983,3125.3,3125.2,35.2475705]
[1765614154896,0.44187983,3125.3,3125.2,5.2475705]
[1765614155123,0.44187983,3125.3,3125.2,4.7365705]
[1765614155736,0.44187983,3125.3,3125.2,5.2475705]
[1765614155896,0.44187983,3125.3,3125.2,3.7802705]
[1765614156101,0.44187983,3125.3,3125.2,4.2912705]
[1765614156298,0.44187983,3125.3,3125.2,3.7802705]
[1765614156497,0.44187983,3125.3,3125.2,4.7476705]
[1765614156826,0.44187983,3125.3,3125.2,5.2475705]
[1765614158427,0.44187983,3125.3,3125.2,4.7365705]
[1765614158622,0.44187983,3125.3,3125.2,5.2475705]
[1765614159131,0.44187983,3125.3,3125.2,3.7802705]
[1765614159631,0.44187983,3125.3,3125.2,5.2475705]
[1765614160915,0.44187983,3125.3,3125.2,34.7476705]
[1765614161440,0.44187983,3125.3,3125.2,35.2475705]
[1765614161799,0.44187983,3125.3,3125.2,5.2475705]
[1765614162004,0.44187983,3125.3,3125.2,35.2475705]
[1765614163632,0.44187983,3125.3,3125.2,40.69869385]
[1765614164133,0.003,3125.7,3125.4,0.405504]
[1765614164334,0.001,3126.6,3125.9,0.405504]
[1765614164535,0.001,3126.6,3126.0,1.09147529]
[1765614164751,0.001,3126.6,3126.0,0.4999]
[1765614164909,0.001,3126.6,3126.1,0.511]
[1765614165102,0.001,3126.6,3126.2,3.19877167]
[1765614165302,0.001,3126.6,3126.2,6.39754334]
[1765614165506,0.001,3126.6,3126.3,0.58047529]
[1765614165936,0.001,3126.6,3126.5,0.4564]
[1765614166135,0.001,3126.6,3126.5,8.84906329]
[1765614166314,0.001,3126.6,3126.5,8.37087529]
[1765614167108,0.001,3126.6,3126.5,7.62234002]
[1765614167320,0.001,3126.6,3126.5,1.03687529]
[1765614167532,0.001,3126.6,3126.5,4.74634002]
[1765614167909,0.1219,3126.6,3126.1,0.195]
[1765614168109,0.1219,3126.6,3126.4,0.58047529]
[1765614168328,0.1219,3126.6,3126.2,0.511]
[1765614168521,0.1219,3126.6,3126.5,3.19846473]
[1765614168845,0.001,3126.6,3126.5,3.19846473]
[1765614169234,0.001,3126.6,3126.4,0.58047529]
[1765614169547,0.001,3126.6,3126.5,2.04777529]
[1765614169940,0.001,3126.6,3126.5,1.54787529]
[1765614170442,0.001,3126.6,3126.5,1.03687529]
[1765614170613,0.1236,3127.2,3126.5,0.511]
[1765614170816,0.55573094,3127.2,3126.6,0.511]
[1765614171255,0.43213094,3127.2,3126.7,3.19826014]
[1765614171455,1.0,3127.3,3126.7,3.19826014]
[1765614171757,4.19766208,3127.3,3126.7,3.19826014]
[1765614172060,1.0,3127.3,3126.6,3.19833698]
[1765614172360,1.0,3127.3,3126.8,0.511]
[1765614173225,1.0,3127.3,3126.9,3.19805558]
[1765614173862,1.0,3127.3,3126.8,0.511]
[1765614174027,1.0,3127.3,3126.8,3.70913893]
[1765614174237,1.0,3127.3,3126.8,4.20903893]
[1765614174440,1.0,3127.3,3126.8,4.17783893]
[1765614174788,1.0,3127.3,3126.9,0.4687]
[1765614174961,1.0,3127.3,3127.2,0.6893]
[1765614175159,1.0,3127.3,3127.2,0.511]
[1765614175331,1.0,3127.3,3127.2,1.0059]
[1765614175526,1.0,3127.3,3127.2,1.4746]
[1765614175730,1.0,3127.3,3127.2,3.819618]
[1765614175962,1.0,3127.3,3127.2,1.4746]
[1765614176165,1.0,3127.3,3127.2,3.800066]
[1765614176834,1.0,3127.3,3127.2,3.55788]
[1765614177162,1.0,3127.3,3127.2,4.23280245]
[1765614177359,1.0,3127.3,3127.2,40.79839458]
[1765614177549,1.0,3127.3,3127.2,32.56194358]
[1765614177954,0.5,3127.3,3127.2,32.96744758]
[1765614178154,0.003,3128.4,3127.5,0.405504]
[1765614178461,0.003,3128.4,3128.3,37.05320264]
[1765614178665,0.003,3128.4,3128.3,37.56420264]
[1765614178832,1.0,3129.3,3128.7,0.405504]
[1765614179036,1.0,3129.3,3128.9,0.4949]
[1765614179234,1.0,3129.3,3128.9,3.69091137]
[1765614179437,1.0,3129.3,3128.9,40.59671401]
[1765614179870,1.0,3129.3,3129.0,0.98597929]
[1765614180044,0.01488167,3129.8,3129.7,36.03159864]
[1765614180234,0.01488167,3129.8,3129.7,37.44400264]
[1765614180435,0.6574,3131.0,3129.7,37.44400264]
[1765614180436,1.0,3131.3,3129.8,30.98597929]
[1765614180637,1.0,3131.3,3131.2,30.6884]
[1765614180932,1.0,3131.3,3131.2,32.18737929]
[1765614181137,3.19469904,3133.1,3131.3,0.58047529]
[1765614181338,3.71964926,3132.9,3131.8,25.192933]
[1765614181696,0.5276999,3132.9,3132.0,3.068524]
[1765614181839,0.00297157,3133.1,3132.8,0.1944]
[1765614182042,0.00297157,3133.1,3133.0,18.78343129]
[1765614182256,0.1893,3134.7,3133.2,30.58047529]
[1765614182457,0.1893,3134.7,3133.2,17.95962464]
[1765614182458,0.1893,3133.9,3133.2,17.95962464]
[1765614182670,0.1893,3133.9,3133.2,11.52580129]
[1765614182839,1.4575,3133.3,3133.0,0.09444716]
[1765614183039,0.4575,3133.1,3133.0,0.09444716]
[1765614183380,7.38305053,3133.3,3131.0,0.1944]
[1765614183381,3.83557762,3132.7,3131.0,0.1944]
[1765614183535,0.4574,3132.4,3132.1,0.514]
[1765614183742,0.4574,3132.4,3131.2,0.1935]
[1765614183938,0.4574,3132.4,3132.3,0.60944716]
[1765614184135,0.4574,3132.4,3131.0,0.1944]
[1765614184335,0.4574,3132.4,3131.1,0.515]
[1765614184539,0.1893,3131.2,3130.8,1.029]
[1765614184765,0.1893,3131.2,3130.9,0.515]
[1765614185076,0.1893,3131.2,3131.0,0.515]
[1765614185236,3.38297581,3131.2,3131.0,0.515]
[1765614185436,3.38297581,3131.2,3130.0,0.6631]
[1765614185437,0.87586758,3131.1,3130.0,0.6631]
[1765614185661,0.1893,3131.2,3130.3,20.219652]
[1765614186062,0.1893,3131.2,3130.4,3.19439604]
[1765614186266,0.1893,3131.2,3130.3,20.219652]
[1765614186467,0.1893,3131.2,3130.6,8.64531291]
[1765614186665,1.67558583,3134.6,3131.2,20.694054]
[1765614186666,0.1893,3131.9,3131.2,20.694054]
[1765614186837,0.1893,3131.9,3131.4,0.09444716]
[1765614187037,7.21132104,3132.6,3131.8,5.45112335]
[1765614187038,0.1893,3132.4,3131.8,5.45112335]
[1765614187358,0.1893,3132.4,3131.9,0.515]
[1765614187760,0.1893,3132.4,3131.2,0.09444716]
[1765614188065,0.4887,3132.3,3130.9,0.1944]
[1765614188255,1.02553822,3132.2,3130.7,0.1944]
[1765614188456,1.02553822,3132.2,3130.8,0.515]
[1765614188663,0.4887,3132.1,3130.7,0.1944]
[1765614188975,0.4887,3132.1,3130.3,5.42714226]
[1765614189149,0.4887,3132.1,3130.4,0.515]
[1765614189542,9.57854406,3132.0,3130.4,4.28994677]
[1765614189737,1.49542441,3131.9,3130.4,4.28994677]
[1765614189970,1.49542441,3131.9,3130.4,4.32189156]
[1765614190170,0.4887,3131.8,3130.6,22.984143]
[1765614190370,0.4887,3131.8,3130.7,0.09444716]
[1765614190674,0.4887,3131.8,3130.9,11.122741]
[1765614190872,0.4887,3131.8,3130.8,0.515]
[1765614191076,0.4887,3131.8,3130.9,0.515]
[1765614191457,0.4887,3131.8,3131.0,0.515]
[1765614191852,6.38630774,3131.7,3131.0,0.515]
[1765614192165,0.68750077,3131.6,3131.0,0.515]
[1765614192469,1.17620077,3131.6,3131.0,0.515]
[1765614192673,0.4887,3131.5,3131.0,0.515]
[1765614192843,0.4887,3131.5,3130.6,0.58047529]
[1765614193041,0.1893,3130.7,3130.1,15.325363]
[1765614193243,0.1893,3130.7,3130.2,0.514]
[1765614193476,0.4887,3130.6,3129.5,0.95911761]
[1765614193780,0.4887,3130.6,3129.6,0.514]
[1765614193781,6.38875578,3130.5,3129.6,0.514]
[1765614193987,0.003,3129.8,3129.7,0.514]
[1765614194388,0.003,3129.8,3129.7,1.4776]
[1765614194591,0.003,3129.8,3129.5,2.16647]
[1765614194887,0.003,3129.8,3129.7,9.07650971]
[1765614195253,0.003,3129.8,3129.7,9.54520971]
[1765614195475,0.003,3129.8,3129.7,4.73926971]
[1765614195776,0.003,3129.8,3129.2,0.4687]
[1765614195980,0.003,3129.8,3128.7,0.4687]
[1765614195981,0.4917,3129.8,3128.7,0.4687]
[1765614196287,0.4917,3129.8,3128.8,0.514]
[1765614196497,0.4917,3129.8,3128.7,0.95936298]
[1765614196498,0.1123,3129.0,3128.7,0.95936298]
[1765614196648,0.1123,3129.0,3128.6,0.514]
[1765614196996,0.4887,3128.9,3128.4,0.514]
[1765614197149,0.4887,3128.9,3127.8,3.19711526]
[1765614197348,0.4887,3128.9,3127.6,3.19733478]
[1765614197349,0.1893,3127.9,3127.6,0.514]
[1765614197875,0.1893,3127.9,3127.7,3.19723758]
[1765614198377,0.4887,3128.6,3127.8,30.9636]
[1765614198576,0.4887,3128.6,3127.9,13.992742]
[1765614198753,0.1123,3129.0,3128.0,0.515]
[1765614198754,0.601,3129.0,3128.0,0.515]
[1765614199278,0.601,3129.0,3127.8,0.58047529]
[1765614199460,3.79695373,3129.0,3128.1,0.515]
[1765614199966,0.4887,3128.9,3128.2,0.515]
[1765614200346,0.4887,3129.5,3128.3,27.87548324]
[1765614200586,0.4887,3129.5,3128.2,0.9837]
[1765614200587,0.4887,3129.5,3128.7,17.097989]
[1765614200878,3.68414168,3129.5,3128.8,0.515]
[1765614201251,3.68414168,3129.5,3128.0,0.58047529]
[1765614201252,0.6201,3128.9,3128.0,0.58047529]
[1765614201451,0.6201,3128.9,3128.1,0.515]
[1765614201683,0.6201,3128.9,3128.2,12.33341926]
[1765614201890,0.6201,3128.9,3128.4,6.39304436]
[1765614202569,0.6201,3128.9,3128.4,3.19652218]
[1765614202748,0.4792,3128.8,3127.4,2.79930029]
[1765614202948,0.4792,3128.8,3128.0,3.19685217]
[1765614203150,0.4792,3128.8,3128.1,0.515]
[1765614203350,0.4792,3128.8,3128.3,3.19660742]
[1765614203546,0.003,3129.8,3128.3,3.19660742]
[1765614203547,0.4822,3129.8,3128.5,8.286072]
[1765614203747,6.87240354,3129.8,3128.4,0.58047529]
[1765614203948,6.87240354,3129.8,3128.5,3.71142]
[1765614204184,0.4792,3129.7,3128.5,3.71142]
[1765614204483,0.4792,3129.7,3128.6,0.515]
[1765614204805,0.4792,3129.7,3128.7,0.515]
[1765614205578,0.1849,3128.8,3128.1,0.1995]
[1765614205787,0.1849,3128.8,3128.3,3.19657687]
[1765614205958,0.1849,3128.8,3128.2,3.19672524]
[1765614205959,3.84134375,3128.8,3128.2,3.19672524]
[1765614206163,0.6452,3128.8,3128.3,0.515]
[1765614206362,0.4603,3128.7,3128.3,0.515]
[1765614206752,0.4603,3128.7,3127.9,3.19695675]
[1765614206957,0.4603,3128.7,3127.4,0.002]
[1765614207186,0.4603,3128.7,3127.9,3.1969548]
[1765614207360,0.70374446,3128.6,3127.8,3.19711555]
[1765614207559,0.70374446,3128.6,3127.9,3.19702988]
[1765614207762,0.4603,3128.5,3127.7,0.515]
[1765614207985,3.65672274,3128.5,3127.8,3.19706164]
[1765614208178,0.43604672,3128.4,3127.7,3.71220891]
[1765614208374,0.43604672,3128.4,3127.7,0.515]
[1765614208375,0.6434,3127.8,3127.7,0.515]
[1765614208596,0.6434,3127.8,3127.4,0.002]
[1765614208800,0.1849,3127.8,3127.4,0.002]
[1765614208970,0.4585,3127.5,3127.4,0.002]
[1765614209166,0.4585,3127.5,3127.4,3.19954428]
[1765614209594,0.4585,3127.5,3127.4,0.002]
[1765614209997,0.4603,3127.5,3127.4,0.002]
[1765614212329,0.1849,3127.8,3127.4,0.002]
[1765614213110,0.6452,3127.8,3127.4,0.002]
[1765614213489,0.4603,3127.7,3127.4,0.002]